fUSD/lending_fUSD_20260529
["ID","MTS","AMOUNT","RATE_DAILY","PERIOD"]
[423374318,1780068128000,-1344.771993,0.00039371,30]
[423374316,1780068128000,-1344.772,0.00039371,30]
[423374317,1780068128000,-151.0,0.00039371,30]
[423374315,1780068128000,-347.527127,0.00039371,30]
[423374320,1780068128000,-613.668026,0.00039371,30]
[423374335,1780068129000,-155.278243,0.00039371,30]
[423374340,1780068129000,-151.0,0.00039371,30]
[423374338,1780068129000,-155.278243,0.00039371,30]
[423374336,1780068129000,-151.0,0.00039371,30]
[423374337,1780068129000,-151.0,0.00039371,30]
[423374333,1780068129000,-155.278243,0.00039371,30]
[423374327,1780068129000,-151.0,0.00039371,30]
[423374332,1780068129000,-155.278243,0.00039371,30]
[423374330,1780068129000,-151.0,0.00039371,30]
[423374331,1780068129000,-786.575825,0.00039371,30]
[423374329,1780068129000,-786.575817,0.00039371,30]
[423374339,1780068129000,-155.278241,0.00039371,30]
[423374328,1780068129000,-155.278243,0.00039371,30]
[423374334,1780068129000,-155.278243,0.00039371,30]
[423374342,1780068129000,-176.475913,0.00039371,30]
[423374356,1780068129000,-593.550499,0.00039371,30]
[423374341,1780068129000,-151.0,0.00039371,30]
[423374357,1780068129000,-593.550503,0.00039371,30]
[423374355,1780068129000,-229.627252,0.00039371,30]
[423374354,1780068129000,-1872.266162,0.00039371,30]
[423374353,1780068129000,-593.550499,0.00039371,30]
[423374352,1780068129000,-229.627252,0.00039371,30]
[423374351,1780068129000,-593.550499,0.00039371,30]
[423374343,1780068129000,-176.475913,0.00039371,30]
[423374349,1780068129000,-176.475909,0.00039371,30]
[423374348,1780068129000,-176.475913,0.00039371,30]
[423374347,1780068129000,-176.475913,0.00039371,30]
[423374346,1780068129000,-176.475913,0.00039371,30]
[423374345,1780068129000,-176.475913,0.00039371,30]
[423374344,1780068129000,-176.475913,0.00039371,30]
[423374350,1780068129000,-229.627252,0.00039371,30]
[423374368,1780068130000,-1872.266154,0.00039371,30]
[423374369,1780068130000,-458.266176,0.00039371,30]
[423374366,1780068130000,-197.57094,0.00039371,30]
[423374367,1780068130000,-2376.05228,0.00039371,30]
[423374365,1780068130000,-221.16886,0.00039371,30]
[423374364,1780068130000,-1872.266162,0.00039371,30]
[423374362,1780068130000,-2376.05228,0.00039371,30]
[423374363,1780068130000,-521.498245,0.00039371,30]
[423374361,1780068130000,-151.0,0.00039371,30]
[423374358,1780068130000,-1872.266162,0.00039371,30]
[423374359,1780068130000,-229.627243,0.00039371,30]
[423374370,1780068130000,-521.498245,0.00039371,30]
[423374360,1780068130000,-197.57094,0.00039371,30]
[423374371,1780068130000,-221.16886,0.00039371,30]
[423374372,1780068130000,-197.57094,0.00039371,30]
[423374388,1780068130000,-458.266177,0.00039371,30]
[423374373,1780068130000,-2376.05228,0.00039371,30]
[423374386,1780068130000,-338.502776,0.00039371,30]
[423374387,1780068130000,-480.574767,0.00039371,30]
[423374384,1780068130000,-521.49824026,0.00039371,30]
[423374385,1780068130000,-221.16885,0.00039371,30]
[423374383,1780068130000,-198.528105,0.00039371,30]
[423374381,1780068130000,-197.570946,0.00039371,30]
[423374382,1780068130000,-458.266176,0.00039371,30]
[423374379,1780068130000,-338.502776,0.00039371,30]
[423374378,1780068130000,-2376.05228,0.00039371,30]
[423374376,1780068130000,-521.498245,0.00039371,30]
[423374377,1780068130000,-221.16886,0.00039371,30]
[423374375,1780068130000,-198.528105,0.00039371,30]
[423374374,1780068130000,-458.266176,0.00039371,30]
[423374380,1780068130000,-480.574767,0.00039371,30]
[423374397,1780068131000,-410.461198,0.00039371,30]
[423374402,1780068131000,-2666.0,0.00039371,120]
[423374399,1780068131000,-410.461198,0.00039371,30]
[423374400,1780068131000,-150.0,0.00039371,30]
[423374398,1780068131000,-410.461198,0.00039371,30]
[423374396,1780068131000,-410.461198,0.00039371,30]
[423374401,1780068131000,-150.0,0.00039371,30]
[423374394,1780068131000,-338.502779,0.00039371,30]
[423374392,1780068131000,-480.574767,0.00039371,30]
[423374393,1780068131000,-198.528101,0.00039371,30]
[423374391,1780068131000,-151.0,0.00039371,30]
[423374390,1780068131000,-338.502776,0.00039371,30]
[423374389,1780068131000,-198.528105,0.00039371,30]
[423374395,1780068131000,-480.574767,0.00039371,30]
[423374403,1780068131000,-1124.0,0.00039371,120]
[423374404,1780068131000,-938.0,0.00039371,120]
[423374420,1780068131000,-303.84472315,0.00039371,120]
[423374419,1780068131000,-170.27584913,0.00039371,120]
[423374418,1780068131000,-180.10108898,0.00039371,120]
[423374417,1780068131000,-471.99624459,0.00039371,120]
[423374416,1780068131000,-176.59884132,0.00039371,120]
[423374415,1780068131000,-803.0,0.00039371,120]
[423374412,1780068131000,-970.97546689,0.00039371,120]
[423374414,1780068131000,-475.38460409,0.00039371,120]
[423374406,1780068131000,-3250.18650398,0.00039371,120]
[423374411,1780068131000,-1000.0,0.00039371,120]
[423374409,1780068131000,-810.0,0.00039371,120]
[423374410,1780068131000,-321.71965828,0.00039371,120]
[423374408,1780068131000,-2000.0,0.00039371,120]
[423374407,1780068131000,-497.10762358,0.00039371,120]
[423374405,1780068131000,-3004.0,0.00039371,120]
[423374413,1780068131000,-470.77498212,0.00039371,120]
[423374435,1780068132000,-1698.33574429,0.00039446,120]
[423374433,1780068132000,-1722.98,0.00039394,120]
[423374431,1780068132000,-322.82,0.00039388,120]
[423374432,1780068132000,-1005.07,0.00039394,120]
[423374430,1780068132000,-2183.0,0.00039371,120]
[423374429,1780068132000,-212.93979684,0.00039371,120]
[423374428,1780068132000,-306.14286284,0.00039371,120]
[423374424,1780068132000,-438.07529303,0.00039371,120]
[423374426,1780068132000,-310.881905,0.00039371,120]
[423374425,1780068132000,-217.83177728,0.00039371,120]
[423374423,1780068132000,-5349.0,0.00039371,120]
[423374422,1780068132000,-531.29200162,0.00039371,120]
[423374421,1780068132000,-226.64463969,0.00039371,120]
[423374434,1780068132000,-322.82,0.00039438,120]
[423374427,1780068132000,-831.97092004,0.00039371,120]
[423374436,1780068132000,-1698.33574429,0.00039446,120]
[423374441,1780068132000,-1698.33574428,0.00039446,120]
[423374438,1780068132000,-1698.33574428,0.00039446,120]
[423374450,1780068132000,-3892.496,0.000395,60]
[423374452,1780068132000,-188.12672957,0.000395,120]
[423374451,1780068132000,-3892.49,0.000395,60]
[423374449,1780068132000,-3892.496,0.000395,60]
[423374439,1780068132000,-1698.33574428,0.00039446,120]
[423374448,1780068132000,-322.82,0.00039488,120]
[423374446,1780068132000,-1698.33574428,0.00039446,120]
[423374447,1780068132000,-1698.33574428,0.00039446,120]
[423374444,1780068132000,-1698.33574428,0.00039446,120]
[423374443,1780068132000,-1698.33574428,0.00039446,120]
[423374442,1780068132000,-1698.33574428,0.00039446,120]
[423374440,1780068132000,-1698.33574428,0.00039446,120]
[423374437,1780068132000,-1698.33574429,0.00039446,120]
[423374445,1780068132000,-1698.33574428,0.00039446,120]
[423374460,1780068133000,-378.40190587,0.000395,120]
[423374466,1780068133000,-2526.89819735,0.000395,120]
[423374464,1780068133000,-1110.35681369,0.000395,120]
[423374465,1780068133000,-1924.52153672,0.000395,120]
[423374463,1780068133000,-343.6190902,0.000395,120]
[423374462,1780068133000,-465.66209473,0.000395,120]
[423374461,1780068133000,-1185.64391367,0.000395,120]
[423374468,1780068133000,-2194.4880446,0.000395,120]
[423374457,1780068133000,-187.6101791,0.000395,120]
[423374458,1780068133000,-162.7836925,0.000395,120]
[423374456,1780068133000,-164.96450737,0.000395,120]
[423374454,1780068133000,-246.54495728,0.000395,120]
[423374455,1780068133000,-172.09249367,0.000395,120]
[423374453,1780068133000,-194.02913845,0.000395,120]
[423374459,1780068133000,-224.14891464,0.000395,120]
[423374467,1780068133000,-1460.43639501,0.000395,120]
[423374483,1780068133000,-1698.33574428,0.00039583,120]
[423374471,1780068133000,-1000.0,0.00039536,34]
[423374469,1780068133000,-789.61821953,0.000395,120]
[423374484,1780068133000,-1698.33574428,0.00039583,120]
[423374482,1780068133000,-1698.33574428,0.00039583,120]
[423374481,1780068133000,-1698.33574428,0.00039583,120]
[423374480,1780068133000,-1698.33574428,0.00039583,120]
[423374479,1780068133000,-1698.33574429,0.00039583,120]
[423374477,1780068133000,-1698.33574429,0.00039583,120]
[423374485,1780068133000,-1698.33574428,0.00039583,120]
[423374476,1780068133000,-1000.0,0.00039574,68]
[423374475,1780068133000,-1000.0,0.00039574,67]
[423374474,1780068133000,-1000.0,0.00039574,66]
[423374473,1780068133000,-1000.0,0.00039574,69]
[423374472,1780068133000,-322.82,0.00039538,120]
[423374470,1780068133000,-5000.0,0.000395,100]
[423374478,1780068133000,-1698.33574429,0.00039583,120]
[423374493,1780068134000,-322.82,0.00039638,120]
[423374496,1780068134000,-1000.0,0.00039699,117]
[423374495,1780068134000,-322.82,0.00039688,120]
[423374494,1780068134000,-178.77941433,0.00039673,30]
[423374492,1780068134000,-1005.07,0.00039592,120]
[423374487,1780068134000,-1698.33574428,0.00039583,120]
[423374491,1780068134000,-300.0,0.00039591,120]
[423374489,1780068134000,-1698.33574428,0.00039583,120]
[423374488,1780068134000,-1698.33574428,0.00039583,120]
[423374486,1780068134000,-1698.33574428,0.00039583,120]
[423374498,1780068134000,-2000.0,0.000397,120]
[423374490,1780068134000,-322.82,0.00039588,120]
[423374499,1780068134000,-384.0,0.00039726,120]
[423374497,1780068134000,-5026.0,0.000397,117]
[423374511,1780068134000,-384.0,0.00039726,120]
[423374514,1780068134000,-384.0,0.00039726,120]
[423374510,1780068134000,-384.0,0.00039726,120]
[423374512,1780068134000,-384.0,0.00039726,120]
[423374509,1780068134000,-384.0,0.00039726,120]
[423374500,1780068134000,-384.0,0.00039726,120]
[423374507,1780068134000,-384.0,0.00039726,120]
[423374508,1780068134000,-384.0,0.00039726,120]
[423374505,1780068134000,-384.0,0.00039726,120]
[423374503,1780068134000,-384.0,0.00039726,120]
[423374504,1780068134000,-384.0,0.00039726,120]
[423374501,1780068134000,-384.0,0.00039726,120]
[423374502,1780068134000,-384.0,0.00039726,120]
[423374506,1780068134000,-384.0,0.00039726,120]
[423374513,1780068134000,-384.0,0.00039726,120]
[423374525,1780068135000,-384.0,0.00039726,120]
[423374527,1780068135000,-384.0,0.00039726,120]
[423374528,1780068135000,-384.0,0.00039726,120]
[423374529,1780068135000,-384.0,0.00039726,120]
[423374524,1780068135000,-384.0,0.00039726,120]
[423374526,1780068135000,-384.0,0.00039726,120]
[423374523,1780068135000,-384.0,0.00039726,120]
[423374517,1780068135000,-384.0,0.00039726,120]
[423374520,1780068135000,-384.0,0.00039726,120]
[423374522,1780068135000,-384.0,0.00039726,120]
[423374519,1780068135000,-384.0,0.00039726,120]
[423374518,1780068135000,-384.0,0.00039726,120]
[423374516,1780068135000,-384.0,0.00039726,120]
[423374515,1780068135000,-384.0,0.00039726,120]
[423374521,1780068135000,-384.0,0.00039726,120]
[423374531,1780068135000,-384.0,0.00039726,120]
[423374545,1780068135000,-384.0,0.00039726,120]
[423374532,1780068135000,-384.0,0.00039726,120]
[423374530,1780068135000,-384.0,0.00039726,120]
[423374547,1780068135000,-384.0,0.00039726,120]
[423374548,1780068135000,-384.0,0.00039726,120]
[423374546,1780068135000,-384.0,0.00039726,120]
[423374544,1780068135000,-384.0,0.00039726,120]
[423374541,1780068135000,-384.0,0.00039726,120]
[423374542,1780068135000,-384.0,0.00039726,120]
[423374543,1780068135000,-384.0,0.00039726,120]
[423374539,1780068135000,-384.0,0.00039726,120]
[423374537,1780068135000,-384.0,0.00039726,120]
[423374538,1780068135000,-384.0,0.00039726,120]
[423374536,1780068135000,-384.0,0.00039726,120]
[423374535,1780068135000,-384.0,0.00039726,120]
[423374533,1780068135000,-384.0,0.00039726,120]
[423374534,1780068135000,-384.0,0.00039726,120]
[423374540,1780068135000,-384.0,0.00039726,120]
[423374557,1780068136000,-384.0,0.00039726,120]
[423374560,1780068136000,-384.0,0.00039726,120]
[423374562,1780068136000,-384.0,0.00039726,120]
[423374561,1780068136000,-384.0,0.00039726,120]
[423374559,1780068136000,-384.0,0.00039726,120]
[423374558,1780068136000,-384.0,0.00039726,120]
[423374553,1780068136000,-384.0,0.00039726,120]
[423374549,1780068136000,-384.0,0.00039726,120]
[423374564,1780068136000,-384.0,0.00039726,120]
[423374555,1780068136000,-384.0,0.00039726,120]
[423374554,1780068136000,-384.0,0.00039726,120]
[423374552,1780068136000,-384.0,0.00039726,120]
[423374550,1780068136000,-384.0,0.00039726,120]
[423374551,1780068136000,-384.0,0.00039726,120]
[423374556,1780068136000,-384.0,0.00039726,120]
[423374565,1780068136000,-384.0,0.00039726,120]
[423374575,1780068136000,-384.0,0.00039726,120]
[423374569,1780068136000,-384.0,0.00039726,120]
[423374563,1780068136000,-384.0,0.00039726,120]
[423374580,1780068136000,-384.0,0.00039726,120]
[423374581,1780068136000,-384.0,0.00039726,120]
[423374579,1780068136000,-384.0,0.00039726,120]
[423374577,1780068136000,-384.0,0.00039726,120]
[423374576,1780068136000,-384.0,0.00039726,120]
[423374574,1780068136000,-384.0,0.00039726,120]
[423374578,1780068136000,-384.0,0.00039726,120]
[423374572,1780068136000,-384.0,0.00039726,120]
[423374573,1780068136000,-384.0,0.00039726,120]
[423374571,1780068136000,-384.0,0.00039726,120]
[423374570,1780068136000,-384.0,0.00039726,120]
[423374566,1780068136000,-384.0,0.00039726,120]
[423374568,1780068136000,-384.0,0.00039726,120]
[423374567,1780068136000,-384.0,0.00039726,120]
[423374592,1780068137000,-322.82,0.00039838,120]
[423374591,1780068137000,-2500.0,0.000398,120]
[423374589,1780068137000,-2891.92,0.000398,120]
[423374588,1780068137000,-498.98,0.000398,48]
[423374587,1780068137000,-250.0,0.000398,30]
[423374585,1780068137000,-322.82,0.00039788,120]
[423374583,1780068137000,-322.82,0.00039738,120]
[423374590,1780068137000,-2500.0,0.000398,120]
[423374584,1780068137000,-648.47,0.00039744,30]
[423374582,1780068137000,-384.0,0.00039726,120]
[423374586,1780068137000,-8919.57146463,0.000398,58]
[423374596,1780068137000,-322.82,0.00039938,120]
[423374595,1780068137000,-2700.0,0.00039904,60]
[423374594,1780068137000,-3100.9,0.000399,120]
[423374608,1780068137000,-500.0,0.00039999,31]
[423374607,1780068137000,-385.94300275,0.00039999,31]
[423374593,1780068137000,-322.82,0.00039888,120]
[423374604,1780068137000,-500.0,0.00039999,31]
[423374605,1780068137000,-221.40012325,0.00039999,31]
[423374603,1780068137000,-500.0,0.00039999,31]
[423374606,1780068137000,-500.0,0.00039999,31]
[423374600,1780068137000,-175.91137321,0.00039999,31]
[423374601,1780068137000,-485.54703,0.00039999,31]
[423374599,1780068137000,-1000.0,0.00039998,31]
[423374598,1780068137000,-322.82,0.00039988,120]
[423374597,1780068137000,-500.0,0.00039972,30]
[423374602,1780068137000,-500.0,0.00039999,31]
[423374617,1780068138000,-500.0,0.00039999,31]
[423374609,1780068138000,-500.0,0.00039999,31]
[423374610,1780068138000,-225.66897974,0.00039999,31]
[423374611,1780068138000,-500.0,0.00039999,31]
[423374612,1780068138000,-500.0,0.00039999,31]
[423374614,1780068138000,-529.6663118,0.00039999,31]
[423374613,1780068138000,-500.0,0.00039999,31]
[423374615,1780068138000,-500.0,0.00039999,31]
[423374616,1780068138000,-500.0,0.00039999,31]
[423374628,1780068138000,-500.0,0.00039999,31]
[423374619,1780068138000,-500.0,0.00039999,31]
[423374620,1780068138000,-500.0,0.00039999,31]
[423374621,1780068138000,-500.0,0.00039999,31]
[423374622,1780068138000,-500.0,0.00039999,31]
[423374624,1780068138000,-500.0,0.00039999,31]
[423374623,1780068138000,-500.0,0.00039999,31]
[423374626,1780068138000,-500.0,0.00039999,31]
[423374627,1780068138000,-500.0,0.00039999,31]
[423374625,1780068138000,-500.0,0.00039999,31]
[423374618,1780068138000,-500.0,0.00039999,31]
[423374641,1780068139000,-575.60231181,0.00039999,31]
[423374640,1780068139000,-500.0,0.00039999,31]
[423374638,1780068139000,-300.0,0.00039999,31]
[423374637,1780068139000,-642.18096859,0.00039999,31]
[423374636,1780068139000,-311.00099132,0.00039999,31]
[423374635,1780068139000,-499.99999999,0.00039999,31]
[423374630,1780068139000,-500.0,0.00039999,31]
[423374634,1780068139000,-1000.0,0.00039999,40]
[423374632,1780068139000,-1000.0,0.00039999,56]
[423374631,1780068139000,-500.0,0.00039999,31]
[423374629,1780068139000,-234.03853636,0.00039999,31]
[423374639,1780068139000,-500.0,0.00039999,31]
[423374633,1780068139000,-1000.0,0.00039999,63]
[423374643,1780068139000,-500.0,0.00039999,31]
[423374647,1780068139000,-50000.0,0.0004,62]
[423374644,1780068139000,-368.04208063,0.00039999,31]
[423374656,1780068139000,-928.51,0.0004,120]
[423374655,1780068139000,-498.98,0.0004,49]
[423374654,1780068139000,-161.0,0.0004,120]
[423374653,1780068139000,-8300.0,0.0004,120]
[423374652,1780068139000,-200.0,0.0004,30]
[423374651,1780068139000,-169.02235849,0.0004,120]
[423374642,1780068139000,-500.0,0.00039999,31]
[423374648,1780068139000,-137263.0,0.0004,30]
[423374649,1780068139000,-3111.0,0.0004,120]
[423374657,1780068139000,-5198.70726804,0.0004,120]
[423374646,1780068139000,-200.0,0.00039999,31]
[423374645,1780068139000,-500.0,0.00039999,31]
[423374650,1780068139000,-647.13,0.0004,120]
[423374670,1780068140000,-322.82,0.00040288,120]
[423374668,1780068140000,-322.82,0.00040238,120]
[423374666,1780068140000,-1000.0,0.00040199,50]
[423374667,1780068140000,-1000.0,0.00040214,72]
[423374665,1780068140000,-322.82,0.00040188,120]
[423374662,1780068140000,-322.82,0.00040138,120]
[423374663,1780068140000,-1000.0,0.00040162,71]
[423374661,1780068140000,-1000.0,0.00040109,70]
[423374660,1780068140000,-322.82,0.00040088,120]
[423374659,1780068140000,-322.82,0.00040038,120]
[423374669,1780068140000,-1000.0,0.00040265,73]
[423374664,1780068140000,-182.0,0.00040186,120]
[423374658,1780068140000,-10000.0,0.0004,120]
[423374671,1780068140000,-4030.25,0.0004029,60]
[423374672,1780068140000,-1323.07,0.0004029,60]
[423374673,1780068140000,-3060.09,0.0004029,60]
[423374686,1780068140000,-3004.0,0.00040371,120]
[423374684,1780068140000,-1124.0,0.00040371,120]
[423374685,1780068140000,-938.0,0.00040371,120]
[423374681,1780068140000,-2820.0,0.00040363,120]
[423374682,1780068140000,-1000.0,0.00040365,74]
[423374683,1780068140000,-2666.0,0.00040371,120]
[423374679,1780068140000,-841.0,0.00040363,120]
[423374678,1780068140000,-674.0,0.00040363,120]
[423374677,1780068140000,-322.82,0.00040338,120]
[423374675,1780068140000,-5912.44,0.0004029,60]
[423374676,1780068140000,-2500.0,0.00040305,120]
[423374674,1780068140000,-380.46,0.0004029,60]
[423374680,1780068140000,-156.0,0.00040363,120]
[423374695,1780068141000,-2452.595,0.000404,60]
[423374700,1780068141000,-322.82,0.00040438,120]
[423374698,1780068141000,-315.4483,0.000404,120]
[423374696,1780068141000,-2452.595,0.000404,60]
[423374697,1780068141000,-2452.59,0.000404,60]
[423374694,1780068141000,-18902.3059,0.000404,120]
[423374701,1780068141000,-1000.0,0.00040462,76]
[423374693,1780068141000,-436.8685,0.000404,120]
[423374691,1780068141000,-322.82,0.00040388,120]
[423374689,1780068141000,-5349.0,0.00040371,120]
[423374690,1780068141000,-2183.0,0.00040371,120]
[423374687,1780068141000,-810.0,0.00040371,120]
[423374688,1780068141000,-803.0,0.00040371,120]
[423374692,1780068141000,-1000.0,0.00040389,90]
[423374699,1780068141000,-1000.0,0.00040414,75]
[423374705,1780068141000,-1000.0,0.00040499,100]
[423374704,1780068141000,-1000.0,0.00040499,45]
[423374715,1780068141000,-1000.0,0.00040556,90]
[423374717,1780068141000,-2000.0,0.0004059,120]
[423374716,1780068141000,-322.82,0.00040588,120]
[423374714,1780068141000,-1000.0,0.00040556,78]
[423374712,1780068141000,-322.82,0.00040538,120]
[423374713,1780068141000,-1000.0,0.00040545,90]
[423374711,1780068141000,-500.0,0.0004052,30]
[423374703,1780068141000,-1000.0,0.00040499,120]
[423374710,1780068141000,-1000.0,0.00040509,77]
[423374708,1780068141000,-10000.0,0.000405,120]
[423374707,1780068141000,-96725.96548161,0.000405,30]
[423374706,1780068141000,-1000.0,0.000405,120]
[423374718,1780068141000,-1000.0,0.00040602,79]
[423374702,1780068141000,-322.82,0.00040488,120]
[423374709,1780068141000,-160.34814562,0.00040507,60]
[423374732,1780068142000,-187.6101791,0.000407,120]
[423374731,1780068142000,-246.54495728,0.000407,120]
[423374727,1780068142000,-1000.0,0.00040691,81]
[423374728,1780068142000,-1000.0,0.00040696,90]
[423374726,1780068142000,-2000.0,0.0004069,120]
[423374721,1780068142000,-1525.29878002,0.00040603,90]
[423374725,1780068142000,-322.82,0.00040688,120]
[423374730,1780068142000,-188.12672957,0.000407,120]
[423374722,1780068142000,-1000.0,0.00040624,90]
[423374723,1780068142000,-322.82,0.00040638,120]
[423374720,1780068142000,-199.70197265,0.00040603,90]
[423374719,1780068142000,-12405.44956377,0.00040603,90]
[423374724,1780068142000,-1000.0,0.00040647,80]
[423374734,1780068142000,-224.14891464,0.000407,120]
[423374729,1780068142000,-163.0,0.000407,120]
[423374736,1780068142000,-1185.64391367,0.000407,120]
[423374748,1780068142000,-3161.6099,0.00040726,90]
[423374747,1780068142000,-3161.6099,0.00040726,90]
[423374746,1780068142000,-3161.6099,0.00040726,90]
[423374745,1780068142000,-2700.0,0.00040726,60]
[423374743,1780068142000,-2194.4880446,0.000407,120]
[423374744,1780068142000,-789.61821953,0.000407,120]
[423374733,1780068142000,-162.7836925,0.000407,120]
[423374740,1780068142000,-1924.52153672,0.000407,120]
[423374742,1780068142000,-1460.43639501,0.000407,120]
[423374739,1780068142000,-1110.35681369,0.000407,120]
[423374737,1780068142000,-465.66209473,0.000407,120]
[423374738,1780068142000,-343.6190902,0.000407,120]
[423374735,1780068142000,-378.40190587,0.000407,120]
[423374741,1780068142000,-2526.89819735,0.000407,120]
[423374762,1780068143000,-3161.6099,0.00040726,90]
[423374760,1780068143000,-3161.6099,0.00040726,90]
[423374758,1780068143000,-3161.6099,0.00040726,90]
[423374759,1780068143000,-3161.6099,0.00040726,90]
[423374757,1780068143000,-3161.6099,0.00040726,90]
[423374756,1780068143000,-3161.6099,0.00040726,90]
[423374754,1780068143000,-3161.6099,0.00040726,90]
[423374752,1780068143000,-3161.6099,0.00040726,90]
[423374753,1780068143000,-3161.6099,0.00040726,90]
[423374750,1780068143000,-3161.6099,0.00040726,90]
[423374751,1780068143000,-3161.6099,0.00040726,90]
[423374761,1780068143000,-3161.6099,0.00040726,90]
[423374755,1780068143000,-3161.6099,0.00040726,90]
[423374749,1780068143000,-3161.6099,0.00040726,90]
[423374763,1780068143000,-3161.6099,0.00040726,90]
[423374766,1780068143000,-500.0,0.00040726,60]
[423374764,1780068143000,-3161.6099,0.00040726,90]
[423374777,1780068143000,-1000.0,0.0004081,90]
[423374776,1780068143000,-1000.0,0.00040799,53]
[423374775,1780068143000,-1000.0,0.00040799,60]
[423374773,1780068143000,-322.82,0.00040788,120]
[423374774,1780068143000,-2000.0,0.0004079,120]
[423374778,1780068143000,-2500.0,0.0004081,120]
[423374772,1780068143000,-1000.0,0.00040778,83]
[423374771,1780068143000,-1000.0,0.00040775,90]
[423374769,1780068143000,-322.82,0.00040738,120]
[423374768,1780068143000,-1000.0,0.00040735,82]
[423374767,1780068143000,-7280.64,0.00040731,30]
[423374765,1780068143000,-3161.6102,0.00040726,90]
[423374770,1780068143000,-1001.0,0.00040767,120]
[423374790,1780068144000,-3100.9,0.000409,120]
[423374789,1780068144000,-214.83591502,0.000409,30]
[423374788,1780068144000,-1000.0,0.00040899,90]
[423374787,1780068144000,-2000.0,0.0004089,120]
[423374786,1780068144000,-322.82,0.00040888,120]
[423374780,1780068144000,-928.51,0.00040822,120]
[423374784,1780068144000,-163.0,0.0004088,120]
[423374783,1780068144000,-163.0,0.0004088,120]
[423374782,1780068144000,-210.0,0.00040877,85]
[423374781,1780068144000,-322.82,0.00040838,120]
[423374779,1780068144000,-1000.0,0.00040821,84]
[423374785,1780068144000,-163.0,0.0004088,120]
[423374793,1780068144000,-322.82,0.00040938,120]
[423374791,1780068144000,-1000.0,0.00040904,85]
[423374794,1780068144000,-1000.0,0.00040945,86]
[423374792,1780068144000,-1000.0,0.0004093,90]
[423374806,1780068144000,-848474.0,0.00041,120]
[423374805,1780068144000,-697782.50732968,0.00041,120]
[423374807,1780068144000,-508455.41,0.00041,120]
[423374803,1780068144000,-1000.0,0.00040999,64]
[423374802,1780068144000,-1000.0,0.00040999,30]
[423374804,1780068144000,-50000.0,0.00041,63]
[423374800,1780068144000,-1000.0,0.00040999,120]
[423374799,1780068144000,-358.768,0.00040999,120]
[423374798,1780068144000,-2000.0,0.0004099,120]
[423374796,1780068144000,-1000.0,0.00040985,87]
[423374797,1780068144000,-322.82,0.00040988,120]
[423374795,1780068144000,-1000.0,0.00040956,90]
[423374801,1780068144000,-1000.0,0.00040999,120]
[423374817,1780068145000,-800.0,0.00041,120]
[423374822,1780068145000,-1397.95598533,0.00041,120]
[423374821,1780068145000,-1451.8539348,0.00041,30]
[423374820,1780068145000,-1041.87111631,0.00041,120]
[423374819,1780068145000,-1500.0,0.00041,120]
[423374818,1780068145000,-1875.0,0.00041,120]
[423374816,1780068145000,-878.39386487,0.00041,30]
[423374808,1780068145000,-306012.65,0.00041,120]
[423374814,1780068145000,-556.78652857,0.00041,120]
[423374813,1780068145000,-1055.85669887,0.00041,30]
[423374811,1780068145000,-5960.71022204,0.00041,120]
[423374812,1780068145000,-2465.0,0.00041,120]
[423374809,1780068145000,-805539.74,0.00041,120]
[423374810,1780068145000,-500000.0,0.00041,120]